fUSD/lending_fUSD_20240910
["ID","MTS","AMOUNT","RATE_DAILY","PERIOD"]
[337697556,1725974821521,160.22,9.258e-05,2]
[337697557,1725974821940,160.22,0.00011521,2]
[337697558,1725974825426,150.0,3.29e-06,2]
[337697559,1725974826891,37000.0,0.00012,30]
[337697560,1725974861245,30000.0,0.00028,120]
[337697561,1725974867768,150.0,3.16e-06,2]
[337697562,1725974910749,150.0,3.41e-06,2]
[337697563,1725974924455,-150.06,0.00012031,2]
[337697564,1725974924486,-150.06,0.00012031,2]
[337697566,1725974924515,-150.06,0.00012031,2]
[337697567,1725974924545,-500.0,0.00012032,2]
[337697568,1725974924575,-556.06335157,0.00012032,2]
[337697569,1725974924604,-500.0,0.00012032,2]
[337697570,1725974924634,-501.49882417,0.00012032,2]
[337697571,1725974924662,-500.0,0.00012032,2]
[337697572,1725974924691,-371.8061438,0.00012032,2]
[337697573,1725974924719,-150.0,0.00012032,2]
[337697574,1725974924748,-1973.38,0.00012032,2]
[337697575,1725974924777,-472.19270156,0.00012032,2]
[337697576,1725974925086,-1131.64424119,0.00012032,2]
[337697577,1725974925119,-368.57305725,0.00012032,2]
[337697578,1725974925146,-1906.85,0.00012032,2]
[337697579,1725974925174,-500.0,0.00012033,2]
[337697580,1725974925204,-500.0,0.00012033,2]
[337697581,1725974925233,-329.7428199,0.00012033,2]
[337697582,1725974925262,-500.0,0.00012033,2]
[337697583,1725974925290,-500.0,0.00012033,2]
[337697584,1725974925318,-500.0,0.00012033,2]
[337697585,1725974925346,-500.0,0.00012033,2]
[337697586,1725974925375,-369.95514395,0.00012033,2]
[337697588,1725974932634,278.65301874,0.00011941,2]
[337697590,1725974949399,-1603.67,0.00012032,2]
[337697591,1725974949430,-500.0,0.00012032,2]
[337697592,1725974949460,-300.0,0.00012032,2]
[337697593,1725974949489,-642.19,0.00012032,2]
[337697594,1725974949520,-130.04485605,0.00012033,2]
[337697595,1725974949550,-500.0,0.00012033,2]
[337697596,1725974949579,-696.7,0.00012033,2]
[337697597,1725974949607,-843.34,0.00012033,2]
[337697598,1725974949636,-808.47,0.00012033,2]
[337697599,1725974949668,-212.34389072,0.00012033,2]
[337697600,1725974949713,-659.28610928,0.00012033,2]
[337697601,1725974949742,-1497.17,0.00012033,2]
[337697602,1725974949771,-629.05,0.00012033,2]
[337697603,1725974949800,-338.42096537,0.00012033,2]
[337697604,1725974954436,651.30925,0.0001192,2]
[337697605,1725974962457,1233.31580136,0.00011933,2]
[337697606,1725974974432,-1653.48,0.00012032,2]
[337697607,1725974974462,-1371.68,0.00012032,2]
[337697608,1725974974491,-1364.33,0.00012032,2]
[337697609,1725974974521,-1464.45,0.00012032,2]
[337697610,1725974974551,-570.0324632,0.00012032,2]
[337697611,1725974974602,-561.9475368,0.00012032,2]
[337697612,1725974974631,-1061.52903463,0.00012033,2]
[337697613,1725974974665,-500.0,0.00012033,2]
[337697614,1725974974693,-61.62850761,0.00012033,2]
[337697615,1725974974735,-866.30149239,0.00012033,2]
[337697616,1725974974764,-553.56,0.00012033,2]
[337697617,1725974974793,-546.8,0.00012033,2]
[337697618,1725974974824,-920.53,0.00012033,2]
[337697619,1725974974854,-619.93,0.00012033,2]
[337697620,1725974974885,-1265.92,0.00012033,2]
[337697621,1725974974915,-500.0,0.00012033,2]
[337697622,1725974974945,-788.98,0.00012033,2]
[337697623,1725974974973,-361.95097081,0.00012033,2]
[337697624,1725974999050,-5073.1,0.00012032,2]
[337697625,1725974999145,-613.95,0.00012032,2]
[337697626,1725974999173,-1037.5834633,0.00012032,2]
[337697627,1725974999335,-547.2565367,0.00012032,2]
[337697628,1725974999365,-138.04902919,0.00012033,2]
[337697629,1725974999396,-500.0,0.00012033,2]
[337697630,1725974999427,-500.0,0.00012033,2]
[337697631,1725974999458,-500.0,0.00012033,2]
[337697632,1725974999491,-179.86935541,0.00012033,2]
[337697640,1725975031798,-150.06,0.00012031,2]
[337697641,1725975031811,-135.23701288,0.00012032,2]
[337697642,1725975031923,-364.76298712,0.00012032,2]
[337697643,1725975031933,-674.3867491,0.00012032,2]
[337697644,1725975031975,-554.9332509,0.00012032,2]
[337697645,1725975031985,-150.0,0.00012032,2]
[337697646,1725975031995,-577.94229797,0.00012032,2]
[337697647,1725975032006,-1706.26,0.00012032,2]
[337697648,1725975032015,-500.0,0.00012032,2]
[337697649,1725975032025,-545.26,0.00012032,2]
[337697650,1725975032036,-2771.2,0.00012032,2]
[337697651,1725975032045,-43.97155892,0.00012032,2]
[337697652,1725975032058,-456.02844108,0.00012032,2]
[337697653,1725975032068,-1048.14064459,0.00012033,2]
[337697654,1725975032078,-255.75091433,0.00012033,2]
[337697655,1725975032089,-342.1,0.00012033,2]
[337697656,1725975032100,-158.84908567,0.00012033,2]
[337697657,1725975032110,-509.72,0.00012033,2]
[337697658,1725975032119,-586.28,0.00012033,2]
[337697659,1725975032128,-741.36,0.00012033,2]
[337697660,1725975032137,-1836.58,0.00012033,2]
[337697661,1725975032147,-500.0,0.00012033,2]
[337697662,1725975032157,-2379.18,0.00012033,2]
[337697663,1725975032167,-620.9,0.00012033,2]
[337697664,1725975032177,-500.0,0.00012033,2]
[337697665,1725975032187,-1157.41,0.00012033,2]
[337697666,1725975032198,-948.75,0.00012033,2]
[337697667,1725975032210,-1234.61,0.00012033,2]
[337697668,1725975032222,-608.06,0.00012033,2]
[337697669,1725975032232,-672.06,0.00012033,2]
[337697670,1725975032241,-1452.97,0.00012033,2]
[337697671,1725975032250,-500.0,0.00012033,2]
[337697672,1725975032259,-500.0,0.00012033,2]
[337697673,1725975032268,-699.27,0.00012033,2]
[337697674,1725975032278,-500.0,0.00012033,2]
[337697675,1725975032287,-607.75,0.00012033,2]
[337697676,1725975032296,-4481.53,0.00012033,2]
[337697677,1725975032307,-500.0,0.00012033,2]
[337697678,1725975032316,-500.0,0.00012033,2]
[337697679,1725975032325,-500.0,0.00012033,2]
[337697680,1725975032335,-2969.23,0.00012033,2]
[337697681,1725975032344,-3358.53,0.00012033,2]
[337697682,1725975032353,-500.0,0.00012033,2]
[337697683,1725975032362,-500.0,0.00012033,2]
[337697684,1725975032372,-4294.99,0.00012033,2]
[337697685,1725975032382,-541.17,0.00012033,2]
[337697686,1725975032391,-678.2,0.00012033,2]
[337697687,1725975032401,-4481.08,0.00012033,2]
[337697688,1725975032412,-624.14,0.00012033,2]
[337697689,1725975032422,-21491.39,0.00012033,2]
[337697690,1725975032432,-2395.77,0.00012033,2]
[337697691,1725975032442,-2067.88,0.00012033,2]
[337697692,1725975032453,-3293.76,0.00012033,2]
[337697693,1725975032462,-1597.05,0.00012033,2]
[337697694,1725975032471,-1855.88,0.00012033,2]
[337697695,1725975032482,-6045.26,0.00012033,2]
[337697696,1725975032496,-749.91,0.00012033,2]
[337697697,1725975032506,-1649.24,0.00012033,2]
[337697698,1725975032516,-34767.29669891,0.00012033,2]
[337697722,1725975037934,-500.0,0.00012032,2]
[337697723,1725975037946,-500.0,0.00012032,2]
[337697724,1725975037958,-2294.54613528,0.00012033,2]
[337697777,1725975039843,-500.0,0.00012032,2]
[337697778,1725975039853,-303.41716581,0.00012033,2]
[337697779,1725975039865,-500.0,0.00012033,2]
[337697780,1725975039877,-683.72,0.00012033,2]
[337697781,1725975039889,-3446.64,0.00012033,2]
[337697782,1725975039900,-500.0,0.00012033,2]
[337697783,1725975039913,-1585.79,0.00012033,2]
[337697784,1725975039924,-5500.53,0.00012033,2]
[337697785,1725975039935,-1245.4,0.00012033,2]
[337697786,1725975039948,-3869.3,0.00012033,2]
[337697787,1725975039959,-1932.21,0.00012033,2]
[337697788,1725975039971,-897.83,0.00012033,2]
[337697789,1725975039983,-1845.42,0.00012033,2]
[337697790,1725975039993,-3968.7,0.00012033,2]
[337697791,1725975040004,-516.11625595,0.00012033,2]
[337697792,1725975040014,-500.0,0.00012033,2]
[337697793,1725975040029,-950.79,0.00012033,2]
[337697794,1725975040040,-1477.27,0.00012033,2]
[337697795,1725975040051,-589.62,0.00012033,2]
[337697796,1725975040063,-1335.57,0.00012033,2]
[337697797,1725975040074,-1975.7,0.00012033,2]
[337697798,1725975040084,-13977.2,0.00012033,2]
[337697799,1725975040096,-500.0,0.00012033,2]
[337697800,1725975040107,-500.0,0.00012033,2]
[337697801,1725975040120,-954.28,0.00012033,2]
[337697802,1725975040131,-500.0,0.00012033,2]
[337697803,1725975040143,-3025.19,0.00012033,2]
[337697804,1725975040153,-549.16,0.00012033,2]
[337697805,1725975040164,-1521.87,0.00012033,2]
[337697806,1725975040175,-3777.38,0.00012033,2]
[337697807,1725975040187,-663.21,0.00012033,2]
[337697808,1725975040201,-1247.5,0.00012033,2]
[337697809,1725975040212,-500.0,0.00012033,2]
[337697810,1725975040225,-2761.44,0.00012033,2]
[337697811,1725975040236,-500.0,0.00012033,2]
[337697812,1725975040247,-3024.35,0.00012033,2]
[337697814,1725975040258,-1855.89,0.00012033,2]
[337697816,1725975040268,-529.15,0.00012033,2]
[337697818,1725975040280,-500.0,0.00012033,2]
[337697820,1725975040291,-1199.06,0.00012033,2]
[337697823,1725975040302,-500.0,0.00012033,2]
[337697825,1725975040313,-1161.74,0.00012033,2]
[337697827,1725975040323,-851.98,0.00012033,2]
[337697828,1725975040333,-7300.31,0.00012033,2]
[337697830,1725975040344,-947.14,0.00012033,2]
[337697832,1725975040354,-2025.24,0.00012033,2]
[337697835,1725975040365,-1458.42,0.00012033,2]
[337697837,1725975040376,-549.38,0.00012033,2]
[337697839,1725975040387,-2275.65,0.00012033,2]
[337697841,1725975040398,-1687.53,0.00012033,2]
[337697843,1725975040408,-20100.2,0.00012033,2]
[337697845,1725975040418,-506.58,0.00012033,2]
[337697847,1725975040428,-500.0,0.00012033,2]
[337697849,1725975040439,-1525.85,0.00012033,2]
[337697851,1725975040450,-1894.99,0.00012033,2]
[337697853,1725975040460,-1126.47,0.00012033,2]
[337697855,1725975040471,-2869.43,0.00012033,2]
[337697857,1725975040482,-1322.55,0.00012033,2]
[337697859,1725975040492,-1571.86,0.00012033,2]
[337697861,1725975040503,-1335.26,0.00012033,2]
[337697863,1725975040513,-500.0,0.00012033,2]
[337697865,1725975040523,-624.51197088,0.00012033,2]
[337697868,1725975040533,-2949.52,0.00012033,2]
[337697870,1725975040544,-3044.43,0.00012033,2]
[337697872,1725975040554,-3194.91,0.00012033,2]
[337697874,1725975040565,-982.93,0.00012033,2]
[337697876,1725975040577,-1727.46,0.00012033,2]
[337697878,1725975040588,-670.23,0.00012033,2]
[337697880,1725975040598,-3006.33,0.00012033,2]
[337697882,1725975040608,-921.84,0.00012033,2]
[337697884,1725975040619,-2873.44,0.00012033,2]
[337697886,1725975040629,-4402.78,0.00012033,2]
[337697888,1725975040639,-1811.92,0.00012033,2]
[337697891,1725975040650,-3796.67,0.00012033,2]
[337697893,1725975040661,-155.57775669,0.00012033,2]
[337697895,1725975040672,-35765.83,0.00012033,2]
[337697897,1725975040683,-3156.52,0.00012033,2]
[337697899,1725975040694,-500.0,0.00012033,2]
[337697901,1725975040706,-4294.8,0.00012033,2]
[337697903,1725975040717,-750.12,0.00012034,2]
[337697905,1725975040727,-531.23,0.00012034,2]
[337697908,1725975040739,-500.0,0.00012034,2]
[337697910,1725975040750,-500.0,0.00012034,2]
[337697912,1725975040761,-507.49,0.00012034,2]
[337697914,1725975040775,-535.52,0.00012034,2]
[337697916,1725975040785,-10713.7984024,0.00012038,2]
[337697918,1725975040797,-616.1528386,0.00012038,2]
[337697920,1725975040810,-37658.5349999,0.00012038,2]
[337697923,1725975040823,-6823.022163,0.00012038,2]
[337697925,1725975040834,-2504.0028296,0.00012038,2]
[337697927,1725975040844,-4898.0466062,0.00012038,2]
[337697929,1725975040855,-24700.274262,0.00012038,2]
[337697931,1725975040865,-252.819,0.00012039,2]
[337697933,1725975040876,-151.655,0.00012039,2]
[337697935,1725975040887,-196.16827053,0.0001204,2]
[337697937,1725975040898,-1604.11752924,0.0001204,3]
[337697939,1725975040908,-629.92088066,0.0001204,3]
[337697941,1725975040919,-1668.28,0.0001204,2]
[337697944,1725975040930,-150.99,0.0001204,2]
[337697946,1725975040941,-499.99,0.0001204,2]
[337697948,1725975040952,-1233.31580131,0.0001204,2]
[337697950,1725975040962,-943.0,0.00012041,2]
[337697952,1725975040973,-304656.67522685,0.00012041,2]
[337697955,1725975040985,-5039049.94689097,0.00012041,2]
[337697957,1725975040997,-717445.46924391,0.00012041,2]
[337697960,1725975041017,-587.125,0.00012041,2]
[337697964,1725975041050,-570.03,0.00012041,2]
[337697966,1725975041066,-913.1421231,0.00012041,2]
[337698174,1725975044079,-649.94,0.00012033,2]
[337698175,1725975044089,-667.68,0.00012033,2]
[337698176,1725975044098,-3218.59,0.00012033,2]
[337698177,1725975044108,-201445.08864414,0.00012041,2]
[337698178,1725975044121,-3362.64419895,0.00012041,2]
[337698182,1725975046201,-500.0,0.00012032,2]
[337698183,1725975046210,-500.0,0.00012033,2]
[337698184,1725975046222,-839.0,0.00012041,2]
[337698185,1725975046231,-2245.3711218,0.00012041,2]
[337698186,1725975057495,2825.42817237,0.00011636,2]
[337698187,1725975070010,179.26,0.0001184,2]
[337698188,1725975071624,166.93,0.00011292,2]
[337698189,1725975077692,420.1107,0.00011972,2]
[337698190,1725975100042,461.60712254,0.00011941,2]
[337698191,1725975105026,300.0,0.000117,4]
[337698192,1725975105208,500.0,9.164e-05,2]
[337698193,1725975107199,600.0,0.000118,4]
[337698194,1725975109322,1000.0,0.000119,4]
[337698197,1725975145230,500.0,0.00011933,2]
[337698198,1725975168172,1448.2095,0.00011933,2]
[337698199,1725975175475,310.39588909,0.00011941,2]
[337698200,1725975191180,272.0,0.00011243,2]
[337698201,1725975204514,14925.94,0.00011243,2]
[337698202,1725975205713,8958.16026526,0.00028,120]
[337698203,1725975209317,3984.0528,0.00011941,2]
[337698204,1725975229047,250.0,0.00011231,2]
[337698205,1725975242568,171.6646934,0.00011941,2]
[337698206,1725975257376,2681.87,0.00011941,2]
[337698207,1725975280359,328.0,0.00011231,2]
[337698208,1725975288196,750.0,0.00011,2]
[337698209,1725975294315,997.78,0.00012,2]
[337698210,1725975295343,10008.96621007,0.00012,2]
[337698211,1725975314531,542.75771,0.0001192,2]
[337698212,1725975316811,161.32,9.335e-05,2]
[337698213,1725975317523,161.32,0.00011599,2]
[337698214,1725975412240,150.0,3.44e-06,2]
[337698215,1725975416109,2000.0,0.0001125,2]
[337698216,1725975416921,1867.8501,0.00011933,2]
[337698217,1725975442051,300.0,0.00011805,2]
[337698218,1725975442153,152.67502348,0.0001194,2]
[337698219,1725975454940,300.0,0.000116,4]
[337698220,1725975457087,700.0,0.000117,4]
[337698221,1725975459300,1100.0,0.000118,4]
[337698222,1725975461391,1500.0,0.000119,4]
[337698223,1725975473218,1422.85162364,0.00011933,2]
[337698224,1725975528286,229.24,0.00011189,2]
[337698225,1725975539625,152.0,0.00011847,4]
[337698226,1725975540024,152.0,0.0001141,3]
[337698227,1725975568390,153.45,0.00011164,2]
[337698228,1725975568850,153.45,0.0001117,2]
[337698229,1725975569068,153.45,0.00011177,2]
[337698230,1725975569341,153.45,0.00011183,2]
[337698231,1725975569604,153.45,0.00011189,2]
[337698232,1725975569736,162.26,0.00011164,2]
[337698233,1725975569935,153.45,0.00011195,2]
[337698234,1725975570143,153.45,0.00011201,2]
[337698235,1725975570596,153.45,0.00011208,2]
[337698236,1725975570814,153.45,0.00011214,2]
[337698237,1725975571078,153.45,0.0001122,2]
[337698238,1725975572094,150.0,3.38e-06,2]
[337698239,1725975631740,555.84567,0.0001192,2]
[337698240,1725975737928,150.0,3.25e-06,2]
[337698241,1725975743160,250.0,0.00011167,2]
[337698242,1725975807782,182.4,0.00011152,2]
[337698243,1725975819855,737.6,0.00011152,2]
[337698244,1725975832991,150.0,3.28e-06,2]
[337698245,1725975840096,-173.0,0.00012022,2]
[337698246,1725975840118,-788.0,0.00012022,2]
[337698247,1725975840140,-1372.71093522,0.00012022,2]
[337698248,1725975840165,-150.0,0.00012031,2]
[337698249,1725975840189,-152.42290487,0.00012031,2]
[337698250,1725975840213,-300.0,0.00012031,2]
[337698251,1725975840235,-151.89,0.00012031,2]
[337698252,1725975840255,-458.27917703,0.00012032,2]
[337698253,1725975840278,-500.0,0.00012032,2]
[337698254,1725975840307,-500.0,0.00012032,2]
[337698255,1725975840330,-1109.19,0.00012032,2]
[337698256,1725975840355,-500.0,0.00012032,2]
[337698257,1725975840377,-1183.17,0.00012032,2]
[337698258,1725975840400,-582.73,0.00012032,2]
[337698259,1725975840426,-500.0,0.00012032,2]
[337698260,1725975840448,-644.06,0.00012032,2]
[337698261,1725975840470,-909.22,0.00012032,2]
[337698262,1725975840491,-436.32698288,0.00012032,2]
[337698263,1725975853205,152.82,9.293e-05,2]
[337698264,1725975853548,152.82,0.00011683,2]
[337698265,1725975900654,1011.48,0.00012,2]
[337698266,1725975904915,150.0,0.00010948,2]
[337698267,1725975905223,150.0,0.00012,2]
[337698268,1725975979872,452.29809,0.0001192,2]
[337698269,1725975988650,1280.56646124,0.00011932,2]
[337698270,1725975991214,150.0,3.44e-06,2]
[337698271,1725976033388,400.0,0.000116,4]
[337698272,1725976035491,900.0,0.000117,4]
[337698273,1725976037623,1300.0,0.000118,4]
[337698274,1725976039792,1800.0,0.000119,4]
[337698276,1725976141742,240.92,0.00010959,2]
[337698277,1725976143808,1325.73053145,0.0001197,2]
[337698278,1725976146816,716.97666756,0.0001197,2]
[337698279,1725976158972,150.0,3.44e-06,2]
[337698280,1725976175359,-150.0,0.0001203,2]
[337698281,1725976175388,-300.0,0.0001203,2]
[337698282,1725976175417,-3149.71805183,0.00012031,2]
[337698283,1725976175446,-1178.1,0.00012031,2]
[337698284,1725976175476,-1380.15,0.00012031,2]
[337698285,1725976175505,-114.56879877,0.00012031,2]
[337698286,1725976175544,-1033.86120123,0.00012031,2]
[337698287,1725976175574,-566.92,0.00012031,2]
[337698288,1725976175603,-500.0,0.00012031,2]
[337698289,1725976175636,-500.0,0.00012031,2]
[337698290,1725976175668,-500.0,0.00012031,2]
[337698291,1725976175699,-536.9,0.00012031,2]
[337698292,1725976175738,-1638.36,0.00012031,2]
[337698293,1725976175777,-435.84922589,0.00012031,2]
[337698294,1725976175814,-560.64642348,0.00012031,2]
[337698295,1725976200173,-6523.43832463,0.00012031,2]
[337698296,1725976200236,-3594.56508813,0.00012031,2]
[337698304,1725976231961,-10033.06016376,0.00012031,2]
[337698305,1725976231971,-2874.4,0.00012031,2]
[337698306,1725976231981,-1778.55,0.00012031,2]
[337698307,1725976231991,-500.0,0.00012031,2]
[337698308,1725976232000,-3019.03,0.00012031,2]
[337698309,1725976232010,-860.42,0.00012031,2]
[337698310,1725976232019,-500.0,0.00012031,2]
[337698311,1725976232029,-655.23,0.00012031,2]
[337698312,1725976232039,-1415.71,0.00012031,2]
[337698313,1725976232048,-500.0,0.00012031,2]
[337698314,1725976232058,-1255.56,0.00012031,2]
[337698315,1725976232067,-1671.25,0.00012031,2]
[337698316,1725976232077,-1840.27,0.00012031,2]
[337698317,1725976232086,-500.0,0.00012031,2]
[337698318,1725976232096,-1891.15,0.00012031,2]
[337698319,1725976232106,-1536.85,0.00012031,2]
[337698320,1725976232116,-500.0,0.00012031,2]
[337698321,1725976232125,-2084.24,0.00012031,2]
[337698322,1725976232134,-635.58,0.00012031,2]
[337698323,1725976232144,-650.15,0.00012031,2]
[337698324,1725976232154,-1584.59,0.00012031,2]
[337698325,1725976232166,-1885.16,0.00012031,2]
[337698326,1725976232175,-978.91,0.00012031,2]
[337698327,1725976232188,-861.82,0.00012031,2]
[337698328,1725976232198,-1307.48,0.00012031,2]
[337698329,1725976232207,-3619.99,0.00012031,2]
[337698330,1725976232216,-2203.69877579,0.00012031,2]
[337698331,1725976232229,-1388.73477412,0.00012031,2]
[337698332,1725976232242,-1446.39645009,0.00012031,2]
[337698333,1725976232252,-2180.83,0.00012031,2]
[337698334,1725976232262,-1778.56,0.00012031,2]
[337698335,1725976232271,-31.46354991,0.00012031,2]
[337698336,1725976232283,-479.84771151,0.00012031,2]
[337698337,1725976232296,-950.95873858,0.00012031,2]
[337698338,1725976232309,-1054.44,0.00012031,2]
[337698339,1725976232319,-1518.81,0.00012031,2]
[337698340,1725976232329,-1322.65,0.00012031,2]
[337698341,1725976232339,-593.10126142,0.00012031,2]
[337698342,1725976232351,-1472.1462219,0.00012031,2]
[337698343,1725976232369,-500.0,0.00012031,2]
[337698344,1725976232382,-856.70953894,0.00012031,2]
[337698345,1725976232404,-851.45896926,0.00012031,2]
[337698346,1725976232421,-2958.36400848,0.00012031,2]
[337698348,1725976232431,-1129.01,0.00012031,2]
[337698351,1725976232441,-129.2990968,0.00012031,2]
[337698354,1725976232457,-1386.0,0.00012031,2]
[337698357,1725976232477,-353.40933682,0.00012031,2]
[337698359,1725976232491,-957.91156638,0.00012031,2]
[337698361,1725976232501,-179.22443362,0.00012031,2]
[337698363,1725976232512,-320.77556638,0.00012031,2]
[337698365,1725976232521,-995.95777613,0.00012031,2]
[337698367,1725976232535,-104.61222387,0.00012031,2]
[337698369,1725976232544,-256.75332381,0.00012031,2]
[337698371,1725976232557,-385.54667619,0.00012031,2]
[337698373,1725976232568,-524.99060431,0.00012031,2]
[337698376,1725976232580,-6845.16,0.00012031,2]
[337698378,1725976232600,-3920.52685054,0.00012031,2]
[337698379,1725976232616,-300.3,0.00012031,2]
[337698386,1725976232815,-7671.71254515,0.00012031,2]
[337698387,1725976232825,-500.0,0.00012031,2]
[337698388,1725976232835,-500.0,0.00012031,2]
[337698389,1725976232845,-2499.87931656,0.00012031,2]
[337698390,1725976232857,-647.2858676,0.00012031,2]
[337698391,1725976232869,-1072.16481584,0.00012031,2]
[337698392,1725976232880,-500.0,0.00012031,2]
[337698393,1725976232889,-500.0,0.00012031,2]
[337698394,1725976232899,-712.75,0.00012031,2]
[337698395,1725976232908,-2084.95724448,0.00012031,2]
[337698396,1725976232920,-1308.0,0.00012031,2]
[337698397,1725976232931,-722.89275552,0.00012031,2]
[337698398,1725976232941,-514.53,0.00012031,2]
[337698399,1725976232951,-203.09217537,0.00012031,2]
[337698400,1725976232961,-1506.37,0.00012031,2]
[337698401,1725976232970,-500.0,0.00012031,2]
[337698402,1725976232980,-388.71598545,0.00012031,2]
[337698403,1725976232989,-151.89,0.00012031,2]
[337698404,1725976232999,-500.0,0.00012032,2]
[337698405,1725976233008,-667.68,0.00012032,2]
[337698406,1725976233018,-500.0,0.00012032,2]
[337698407,1725976233027,-808.2,0.00012032,2]
[337698408,1725976233037,-500.0,0.00012032,2]
[337698409,1725976233047,-89.28147352,0.00012032,2]
[337698419,1725976238008,-507.02834587,0.00012031,2]
[337698422,1725976238020,-460.19816626,0.00012031,2]
[337698424,1725976238053,-5065.1991,0.00012031,2]
[337698425,1725976238071,-9501.35438787,0.00012031,2]
[337698427,1725976238081,-883.43,0.00012031,2]
[337698429,1725976238091,-1570.1,0.00012031,2]
[337698431,1725976238101,-916.84852648,0.00012032,2]
[337698433,1725976238110,-774.79,0.00012032,2]
[337698435,1725976238119,-1434.79,0.00012032,2]
[337698437,1725976238129,-835.31,0.00012032,2]
[337698439,1725976238138,-1341.62,0.00012032,2]
[337698441,1725976238148,-602.84,0.00012032,2]
[337698443,1725976238158,-889.27,0.00012032,2]
[337698445,1725976238168,-500.0,0.00012032,2]
[337698447,1725976238177,-500.0,0.00012032,2]
[337698448,1725976238187,-594.1,0.00012032,2]
[337698450,1725976238196,-530.49,0.00012032,2]
[337698452,1725976238206,-1213.18,0.00012032,2]
[337698454,1725976238216,-745.26564512,0.00012032,2]
[337698457,1725976238228,-136.90435488,0.00012032,2]
[337698459,1725976238238,-1176.84,0.00012032,2]
[337698460,1725976238247,-500.0,0.00012032,2]
[337698462,1725976238257,-500.0,0.00012032,2]
[337698464,1725976238267,-756.11,0.00012032,2]
[337698466,1725976238276,-500.0,0.00012032,2]
[337698468,1725976238287,-500.0,0.00012032,2]
[337698470,1725976238296,-725.17,0.00012032,2]
[337698472,1725976238308,-561.85,0.00012032,2]
[337698473,1725976238318,-500.0,0.00012032,2]
[337698475,1725976238328,-500.0,0.00012032,2]
[337698477,1725976238338,-1760.05,0.00012032,2]
[337698479,1725976238348,-710.47,0.00012032,2]
[337698480,1725976238358,-595.03,0.00012032,2]
[337698482,1725976238367,-130.73064112,0.00012032,2]
[337698484,1725976238379,-2149.31935888,0.00012032,2]
[337698486,1725976238389,-500.0,0.00012032,2]
[337698488,1725976238398,-1062.97,0.00012032,2]
[337698490,1725976238408,-500.0,0.00012032,2]
[337698492,1725976238417,-1133.87,0.00012032,2]
[337698494,1725976238427,-1203.1,0.00012032,2]
[337698496,1725976238437,-802.55,0.00012032,2]
[337698498,1725976238446,-500.0,0.00012032,2]
[337698500,1725976238456,-558.45,0.00012032,2]
[337698502,1725976238465,-674.03064162,0.00012032,2]
[337698504,1725976238477,-142.45935838,0.00012032,2]
[337698506,1725976238489,-871.33,0.00012032,2]
[337698507,1725976238499,-617.22,0.00012032,2]
[337698508,1725976238508,-1374.24,0.00012032,2]
[337698509,1725976238518,-500.0,0.00012032,2]
[337698510,1725976238527,-500.0,0.00012032,2]
[337698511,1725976238536,-500.56,0.00012032,2]
[337698512,1725976238546,-670.14,0.00012032,2]
[337698513,1725976238555,-582.43,0.00012032,2]
[337698514,1725976238567,-500.0,0.00012032,2]
[337698515,1725976238577,-2845.51,0.00012032,2]
[337698516,1725976238587,-718.87,0.00012032,2]
[337698517,1725976238596,-3901.47564162,0.00012032,2]